[Event "Titled Tuesday Blitz November 01 Late 2022"]
[White "Thomforde-Toates, Noah"]
[Black "Wessendorf, Thomas, Dr."]
[WhiteFideId "30951992"]
[BlackFideId "4604270"]
[WhiteElo "2625"]
[BlackElo "2280"]
[Result "1-0"]
[Round "01"]
[TimeControl "180+1"]
[Date "2022.11.02"]
[WhiteClock "0:00:51"]
[BlackClock "0:00:55"]

1. d4 {[%clk 0:03:00]}  Nf6 {[%clk 0:02:58]} 2. Nc3 {[%clk 0:03:01]}  d5 {[%clk 0:02:57]} 3. Bf4 {[%clk 0:03:01]}  e6 {[%clk 0:02:51]} 4. e3 {[%clk 0:03:02]}  Bd6 {[%clk 0:02:50]} 5. Nf3 {[%clk 0:03:02]}  O-O {[%clk 0:02:46]} 6. Bd3 {[%clk 0:03:01]}  Bxf4 {[%clk 0:02:42]} 7. exf4 {[%clk 0:03:01]}  b6 {[%clk 0:02:36]} 8. O-O {[%clk 0:02:46]}  Ba6 {[%clk 0:02:33]} 9. Bxa6 {[%clk 0:02:46]}  Nxa6 {[%clk 0:02:32]} 10. a4 {[%clk 0:02:44]}  Nb4 {[%clk 0:02:29]} 11. a5 {[%clk 0:02:43]}  c5 {[%clk 0:02:21]} 12. Ne5 {[%clk 0:02:40]}  Qe7 {[%clk 0:02:06]} 13. Re1 {[%clk 0:02:31]}  Rfc8 {[%clk 0:01:59]} 14. axb6 {[%clk 0:01:42]}  axb6 {[%clk 0:01:57]} 15. Na4 {[%clk 0:01:41]}  cxd4 {[%clk 0:01:43]} 16. Nxb6 {[%clk 0:01:36]}  Rxa1 {[%clk 0:01:41]} 17. Nxc8 {[%clk 0:01:34]}  Qb7 {[%clk 0:01:03]} 18. Qxa1 {[%clk 0:01:34]}  Nxc2 {[%clk 0:01:03]} 19. Nd6 {[%clk 0:01:17]}  Qb8 {[%clk 0:00:55]} 20. Nc6 {[%clk 0:00:51]} 1-0


[Site "https://www.chess.com"]

[Event "Titled Tuesday Blitz November 01 Late 2022"]
[White "Tokhirjonova, Gulrukhbegim"]
[Black "chess50years"]
[WhiteFideId "14203626"]
[WhiteElo "2236"]
[BlackElo "2000"]
[Result "1-0"]
[Round "01"]
[TimeControl "180+1"]
[Date "2022.11.02"]
[WhiteClock "0:02:24"]
[BlackClock "0:01:11"]

1. e4 {[%clk 0:02:56]}  c6 {[%clk 0:02:56]} 2. d4 {[%clk 0:02:56]}  d5 {[%clk 0:02:56]} 3. e5 {[%clk 0:02:56]}  Bf5 {[%clk 0:02:54]} 4. Nf3 {[%clk 0:02:56]}  e6 {[%clk 0:02:53]} 5. Be2 {[%clk 0:02:57]}  Ne7 {[%clk 0:02:51]} 6. O-O {[%clk 0:02:57]}  h6 {[%clk 0:02:51]} 7. b3 {[%clk 0:02:56]}  Nd7 {[%clk 0:02:50]} 8. Bb2 {[%clk 0:02:56]}  g5 {[%clk 0:02:46]} 9. c4 {[%clk 0:02:56]}  Bg7 {[%clk 0:02:43]} 10. Nc3 {[%clk 0:02:56]}  O-O {[%clk 0:02:26]} 11. Ba3 {[%clk 0:02:54]}  Re8 {[%clk 0:02:22]} 12. Bd6 {[%clk 0:02:52]}  Bg4 {[%clk 0:02:18]} 13. h3 {[%clk 0:02:50]}  Bxf3 {[%clk 0:02:18]} 14. Bxf3 {[%clk 0:02:51]}  Nf5 {[%clk 0:02:17]} 15. Ba3 {[%clk 0:02:47]}  Nf8 {[%clk 0:02:10]} 16. cxd5 {[%clk 0:02:47]}  exd5 {[%clk 0:02:04]} 17. Re1 {[%clk 0:02:40]}  Ne6 {[%clk 0:02:00]} 18. Ne2 {[%clk 0:02:30]}  Bf8 {[%clk 0:01:29]} 19. Bxf8 {[%clk 0:02:25]}  Rxf8 {[%clk 0:01:30]} 20. Rc1 {[%clk 0:02:26]}  Kg7 {[%clk 0:01:26]} 21. Qd3 {[%clk 0:02:25]}  Nh4 {[%clk 0:01:22]} 22. Bg4 {[%clk 0:02:26]}  Ng6 {[%clk 0:01:20]} 23. Ng3 {[%clk 0:02:25]}  Ne7 {[%clk 0:01:14]} 24. Nh5+ {[%clk 0:02:24]}  Kh8 {[%clk 0:01:11]} 25. Nf6 {[%clk 0:02:24]} 1-0


[Site "https://www.chess.com"]

[Event "Titled Tuesday Blitz November 01 Late 2022"]
[White "Wartiovaara, Oliver"]
[Black "Weetik, Vjacheslav"]
[WhiteFideId "513024"]
[BlackFideId "4153472"]
[WhiteElo "2197"]
[BlackElo "2469"]
[Result "0-1"]
[Round "01"]
[TimeControl "180+1"]
[Date "2022.11.02"]
[WhiteClock "0:00:22"]
[BlackClock "0:00:05"]

1. c4 {[%clk 0:02:57]}  Nf6 {[%clk 0:02:57]} 2. g3 {[%clk 0:02:57]}  c6 {[%clk 0:02:50]} 3. Bg2 {[%clk 0:02:56]}  d5 {[%clk 0:02:50]} 4. Nf3 {[%clk 0:02:52]}  Bf5 {[%clk 0:02:49]} 5. Qb3 {[%clk 0:02:42]}  Qb6 {[%clk 0:02:49]} 6. d3 {[%clk 0:02:40]}  e6 {[%clk 0:02:29]} 7. Be3 {[%clk 0:02:38]}  Qa6 {[%clk 0:02:26]} 8. O-O {[%clk 0:02:34]}  Nbd7 {[%clk 0:02:19]} 9. Qc3 {[%clk 0:02:23]}  c5 {[%clk 0:01:55]} 10. Qc1 {[%clk 0:02:22]}  Be7 {[%clk 0:01:50]} 11. Bf4 {[%clk 0:02:17]}  O-O {[%clk 0:01:41]} 12. Ne5 {[%clk 0:02:16]}  Rfd8 {[%clk 0:01:35]} 13. Nxd7 {[%clk 0:02:12]}  Rxd7 {[%clk 0:01:34]} 14. Nd2 {[%clk 0:02:11]}  h6 {[%clk 0:01:33]} 15. Nf3 {[%clk 0:02:09]}  Rdd8 {[%clk 0:01:27]} 16. Ne5 {[%clk 0:02:07]}  Rac8 {[%clk 0:01:24]} 17. b3 {[%clk 0:02:06]}  b5 {[%clk 0:01:20]} 18. Qb2 {[%clk 0:01:58]}  Bf8 {[%clk 0:01:11]} 19. Rac1 {[%clk 0:01:57]}  Bh7 {[%clk 0:01:10]} 20. Rfe1 {[%clk 0:01:53]}  bxc4 {[%clk 0:01:03]} 21. dxc4 {[%clk 0:01:51]}  d4 {[%clk 0:01:00]} 22. Rcd1 {[%clk 0:01:48]}  Ne4 {[%clk 0:00:58]} 23. Bxe4 {[%clk 0:01:28]}  Bxe4 {[%clk 0:00:58]} 24. Nd3 {[%clk 0:01:28]}  Ba8 {[%clk 0:00:53]} 25. f3 {[%clk 0:01:27]}  f6 {[%clk 0:00:52]} 26. g4 {[%clk 0:01:23]}  e5 {[%clk 0:00:51]} 27. Bg3 {[%clk 0:01:23]}  Qb7 {[%clk 0:00:47]} 28. e4 {[%clk 0:01:23]}  dxe3 {[%clk 0:00:46]} 29. Rxe3 {[%clk 0:01:23]}  Rd4 {[%clk 0:00:46]} 30. Rde1 {[%clk 0:01:20]}  Rcd8 {[%clk 0:00:44]} 31. Nf2 {[%clk 0:01:20]}  Rxc4 {[%clk 0:00:30]} 32. Qb1 {[%clk 0:01:01]}  Rcd4 {[%clk 0:00:27]} 33. Qg6 {[%clk 0:01:00]}  c4 {[%clk 0:00:23]} 34. Ne4 {[%clk 0:01:00]}  Qf7 {[%clk 0:00:18]} 35. Qxf7+ {[%clk 0:00:56]}  Kxf7 {[%clk 0:00:19]} 36. Bf2 {[%clk 0:00:55]}  Bxe4 {[%clk 0:00:13]} 37. Rxe4 {[%clk 0:00:50]}  Rxe4 {[%clk 0:00:12]} 38. Rxe4 {[%clk 0:00:51]}  cxb3 {[%clk 0:00:05]} 39. axb3 {[%clk 0:00:52]}  a5 {[%clk 0:00:06]} 40. Ra4 {[%clk 0:00:52]}  Bb4 {[%clk 0:00:06]} 41. Bb6 {[%clk 0:00:39]}  Rd3 {[%clk 0:00:06]} 42. Bxa5 {[%clk 0:00:38]}  Bxa5 {[%clk 0:00:06]} 43. Rxa5 {[%clk 0:00:39]}  Rxf3 {[%clk 0:00:07]} 44. Rb5 {[%clk 0:00:38]}  e4 {[%clk 0:00:06]} 45. Kg2 {[%clk 0:00:39]}  Rc3 {[%clk 0:00:06]} 46. Rb4 {[%clk 0:00:38]}  e3 {[%clk 0:00:04]} 47. Kf3 {[%clk 0:00:36]}  Kg6 {[%clk 0:00:04]} 48. Re4 {[%clk 0:00:36]}  Rxb3 {[%clk 0:00:03]} 49. h4 {[%clk 0:00:34]}  Ra3 {[%clk 0:00:03]} 50. Kf4 {[%clk 0:00:34]}  h5 {[%clk 0:00:03]} 51. Kf3 {[%clk 0:00:25]}  hxg4+ {[%clk 0:00:03]} 52. Rxg4+ {[%clk 0:00:26]}  Kf7 {[%clk 0:00:04]} 53. Re4 {[%clk 0:00:26]}  f5 {[%clk 0:00:04]} 54. Rxe3 {[%clk 0:00:25]}  Rxe3+ {[%clk 0:00:04]} 55. Kxe3 {[%clk 0:00:26]}  Kf6 {[%clk 0:00:04]} 56. Kf4 {[%clk 0:00:26]}  g6 {[%clk 0:00:05]} 57. Kf3 {[%clk 0:00:25]}  Ke5 {[%clk 0:00:05]} 58. Ke3 {[%clk 0:00:25]}  f4+ {[%clk 0:00:05]} 59. Ke2 {[%clk 0:00:25]}  Ke4 {[%clk 0:00:04]} 60. Kf2 {[%clk 0:00:25]}  f3 {[%clk 0:00:05]} 61. Kf1 {[%clk 0:00:24]}  Kf5 {[%clk 0:00:05]} 62. Kf2 {[%clk 0:00:22]}  Kg4 {[%clk 0:00:05]} 0-1


[Site "https://www.chess.com"]

[Event "Titled Tuesday Blitz November 01 Late 2022"]
[White "Wieczorek, Oskar"]
[Black "Vovk, Orest"]
[WhiteFideId "1133950"]
[BlackFideId "14113490"]
[WhiteElo "2404"]
[BlackElo "2215"]
[Result "1-0"]
[Round "01"]
[TimeControl "180+1"]
[Date "2022.11.02"]
[WhiteClock "0:02:16"]
[BlackClock "0:01:35"]

1. e4 {[%clk 0:03:00]}  g5 {[%clk 0:02:55]} 2. d4 {[%clk 0:02:57]}  h6 {[%clk 0:02:54]} 3. Bd3 {[%clk 0:02:56]}  Bg7 {[%clk 0:02:53]} 4. Ne2 {[%clk 0:02:56]}  d5 {[%clk 0:02:48]} 5. exd5 {[%clk 0:02:56]}  Qxd5 {[%clk 0:02:48]} 6. O-O {[%clk 0:02:56]}  Nc6 {[%clk 0:02:47]} 7. c4 {[%clk 0:02:56]}  Qd6 {[%clk 0:02:41]} 8. d5 {[%clk 0:02:56]}  Ne5 {[%clk 0:02:41]} 9. Nbc3 {[%clk 0:02:56]}  a6 {[%clk 0:02:39]} 10. Ne4 {[%clk 0:02:56]}  Qg6 {[%clk 0:02:38]} 11. Bc2 {[%clk 0:02:46]}  Nxc4 {[%clk 0:02:24]} 12. Nd2 {[%clk 0:02:43]}  Nxd2 {[%clk 0:02:14]} 13. Bxg6 {[%clk 0:02:42]}  Nxf1 {[%clk 0:02:14]} 14. Bc2 {[%clk 0:02:37]}  Nxh2 {[%clk 0:02:13]} 15. Kxh2 {[%clk 0:02:37]}  Nf6 {[%clk 0:02:12]} 16. Nc3 {[%clk 0:02:37]}  Bd7 {[%clk 0:02:04]} 17. Be3 {[%clk 0:02:36]}  O-O-O {[%clk 0:02:04]} 18. Kg1 {[%clk 0:02:30]}  Ng4 {[%clk 0:01:57]} 19. Bd4 {[%clk 0:02:29]}  Bxd4 {[%clk 0:01:54]} 20. Qxd4 {[%clk 0:02:28]}  Kb8 {[%clk 0:01:54]} 21. Re1 {[%clk 0:02:21]}  e5 {[%clk 0:01:49]} 22. Qb4 {[%clk 0:02:19]}  Rhe8 {[%clk 0:01:37]} 23. d6 {[%clk 0:02:18]}  Bc6 {[%clk 0:01:34]} 24. dxc7+ {[%clk 0:02:18]}  Kxc7 {[%clk 0:01:35]} 25. Qxg4 {[%clk 0:02:16]} 1-0


[Site "https://www.chess.com"]

[Event "Titled Tuesday Blitz November 01 Late 2022"]
[White "Winterberg, Lukas"]
[Black "Krzyzanowski, Marcin"]
[WhiteFideId "24622702"]
[BlackFideId "1132199"]
[WhiteElo "2349"]
[BlackElo "2435"]
[Result "1-0"]
[Round "01"]
[TimeControl "180+1"]
[Date "2022.11.02"]
[WhiteClock "0:00:05"]
[BlackClock "0:00:02"]

1. d4 {[%clk 0:03:00]}  Nf6 {[%clk 0:02:59]} 2. Nf3 {[%clk 0:03:00]}  g6 {[%clk 0:02:59]} 3. c4 {[%clk 0:03:00]}  Bg7 {[%clk 0:02:59]} 4. Nc3 {[%clk 0:03:01]}  d6 {[%clk 0:02:59]} 5. e4 {[%clk 0:03:01]}  O-O {[%clk 0:02:59]} 6. Be2 {[%clk 0:03:02]}  e5 {[%clk 0:03:00]} 7. O-O {[%clk 0:03:02]}  Bg4 {[%clk 0:02:54]} 8. dxe5 {[%clk 0:03:01]}  dxe5 {[%clk 0:02:52]} 9. Nxe5 {[%clk 0:02:57]}  Qxd1 {[%clk 0:02:48]} 10. Bxd1 {[%clk 0:02:58]}  Bxd1 {[%clk 0:02:43]} 11. Rxd1 {[%clk 0:02:59]}  Nxe4 {[%clk 0:02:43]} 12. Nxg6 {[%clk 0:02:58]}  Nxc3 {[%clk 0:02:42]} 13. Ne7+ {[%clk 0:02:57]}  Kh8 {[%clk 0:02:42]} 14. bxc3 {[%clk 0:02:58]}  Na6 {[%clk 0:02:22]} 15. Bf4 {[%clk 0:02:38]}  Bxc3 {[%clk 0:02:13]} 16. Rab1 {[%clk 0:02:37]}  b6 {[%clk 0:01:17]} 17. Rd3 {[%clk 0:02:37]}  Bg7 {[%clk 0:01:16]} 18. Nf5 {[%clk 0:02:13]}  Rad8 {[%clk 0:01:16]} 19. Rbd1 {[%clk 0:01:59]}  Rxd3 {[%clk 0:01:15]} 20. Rxd3 {[%clk 0:02:00]}  Re8 {[%clk 0:01:13]} 21. g4 {[%clk 0:01:56]}  Nc5 {[%clk 0:01:13]} 22. Rd5 {[%clk 0:01:49]}  Bf6 {[%clk 0:01:08]} 23. Bxc7 {[%clk 0:01:38]}  Re4 {[%clk 0:01:06]} 24. h3 {[%clk 0:01:31]}  Rxc4 {[%clk 0:01:06]} 25. Bd8 {[%clk 0:01:32]}  Bg7 {[%clk 0:00:55]} 26. Bg5 {[%clk 0:01:25]}  Ne6 {[%clk 0:00:54]} 27. Be3 {[%clk 0:01:22]}  Rc7 {[%clk 0:00:51]} 28. a4 {[%clk 0:01:21]}  Bf8 {[%clk 0:00:45]} 29. Bd4+ {[%clk 0:01:02]}  Kg8 {[%clk 0:00:42]} 30. Be5 {[%clk 0:00:59]}  Rc1+ {[%clk 0:00:42]} 31. Kh2 {[%clk 0:00:58]}  Rc2 {[%clk 0:00:41]} 32. Kg3 {[%clk 0:00:57]}  Rc5 {[%clk 0:00:41]} 33. Ne3 {[%clk 0:00:45]}  Rxd5 {[%clk 0:00:41]} 34. Nxd5 {[%clk 0:00:45]}  Nc5 {[%clk 0:00:42]} 35. Nf6+ {[%clk 0:00:43]}  Kg7 {[%clk 0:00:41]} 36. Nd7+ {[%clk 0:00:35]}  Kg8 {[%clk 0:00:40]} 37. Nxc5 {[%clk 0:00:32]}  Bxc5 {[%clk 0:00:39]} 38. f4 {[%clk 0:00:32]}  Kf8 {[%clk 0:00:38]} 39. Kf3 {[%clk 0:00:32]}  Ke7 {[%clk 0:00:37]} 40. Ke4 {[%clk 0:00:33]}  a6 {[%clk 0:00:35]} 41. Kd5 {[%clk 0:00:33]}  Be3 {[%clk 0:00:34]} 42. f5 {[%clk 0:00:33]}  b5 {[%clk 0:00:32]} 43. axb5 {[%clk 0:00:32]}  axb5 {[%clk 0:00:33]} 44. Bc3 {[%clk 0:00:31]}  Kd7 {[%clk 0:00:32]} 45. Bb4 {[%clk 0:00:29]}  Bb6 {[%clk 0:00:32]} 46. h4 {[%clk 0:00:29]}  Bf2 {[%clk 0:00:31]} 47. h5 {[%clk 0:00:27]}  Be3 {[%clk 0:00:29]} 48. Bc3 {[%clk 0:00:26]}  Kc7 {[%clk 0:00:23]} 49. Ke5 {[%clk 0:00:22]}  Bg5 {[%clk 0:00:21]} 50. Kd5 {[%clk 0:00:22]}  Kb6 {[%clk 0:00:21]} 51. Kd6 {[%clk 0:00:22]}  Bh4 {[%clk 0:00:15]} 52. Kd7 {[%clk 0:00:20]}  Kc5 {[%clk 0:00:14]} 53. Ke8 {[%clk 0:00:20]}  f6 {[%clk 0:00:15]} 54. Kf7 {[%clk 0:00:20]}  h6 {[%clk 0:00:14]} 55. Bxf6 {[%clk 0:00:18]}  Bxf6 {[%clk 0:00:14]} 56. Kxf6 {[%clk 0:00:19]}  b4 {[%clk 0:00:15]} 57. Kg7 {[%clk 0:00:18]}  b3 {[%clk 0:00:15]} 58. f6 {[%clk 0:00:18]}  b2 {[%clk 0:00:16]} 59. f7 {[%clk 0:00:19]}  b1=Q {[%clk 0:00:17]} 60. f8=Q+ {[%clk 0:00:20]}  Kc6 {[%clk 0:00:15]} 61. Qf6+ {[%clk 0:00:19]}  Kd7 {[%clk 0:00:16]} 62. Kxh6 {[%clk 0:00:17]}  Qc1+ {[%clk 0:00:14]} 63. Kg7 {[%clk 0:00:15]}  Qd1 {[%clk 0:00:12]} 64. Qf5+ {[%clk 0:00:13]}  Ke7 {[%clk 0:00:12]} 65. Qf6+ {[%clk 0:00:11]}  Kd7 {[%clk 0:00:12]} 66. Qf7+ {[%clk 0:00:08]}  Kd8 {[%clk 0:00:11]} 67. g5 {[%clk 0:00:06]}  Qg4 {[%clk 0:00:10]} 68. Qf6+ {[%clk 0:00:05]}  Kc8 {[%clk 0:00:07]} 69. h6 {[%clk 0:00:05]}  Qd7+ {[%clk 0:00:08]} 70. Qf7 {[%clk 0:00:05]}  Qd4+ {[%clk 0:00:08]} 71. Kg6 {[%clk 0:00:05]}  Qd6+ {[%clk 0:00:07]} 72. Qf6 {[%clk 0:00:05]}  Qb4 {[%clk 0:00:04]} 73. h7 {[%clk 0:00:04]}  Kc7 {[%clk 0:00:03]} 74. h8=Q {[%clk 0:00:04]}  Qb1+ {[%clk 0:00:04]} 75. Qf5 {[%clk 0:00:04]}  Qb6+ {[%clk 0:00:03]} 76. Qhf6 {[%clk 0:00:04]}  Qd6 {[%clk 0:00:01]} 77. Qxd6+ {[%clk 0:00:04]}  Kb7 {[%clk 0:00:02]} 78. Kf6 {[%clk 0:00:05]}  Ka8 {[%clk 0:00:02]} 79. Qc8+ {[%clk 0:00:04]}  Ka7 {[%clk 0:00:02]} 80. Qcb8# {[%clk 0:00:05]} 1-0


[Site "https://www.chess.com"]

[Event "Titled Tuesday Blitz November 01 Late 2022"]
[White "Young, Ryan"]
[Black "Iliaguev, Nisim"]
[WhiteFideId "2049945"]
[BlackFideId "2817276"]
[WhiteElo "2406"]
[BlackElo "2264"]
[Result "0-1"]
[Round "01"]
[TimeControl "180+1"]
[Date "2022.11.02"]
[WhiteClock "0:00:02"]
[BlackClock "0:01:00"]

1. e4 {[%clk 0:02:53]}  c6 {[%clk 0:03:00]} 2. d4 {[%clk 0:02:53]}  d5 {[%clk 0:02:59]} 3. exd5 {[%clk 0:02:53]}  cxd5 {[%clk 0:02:55]} 4. Bd3 {[%clk 0:02:52]}  Nf6 {[%clk 0:02:55]} 5. h3 {[%clk 0:02:52]}  Nc6 {[%clk 0:02:55]} 6. c3 {[%clk 0:02:51]}  Qc7 {[%clk 0:02:55]} 7. Nf3 {[%clk 0:02:50]}  e6 {[%clk 0:02:54]} 8. O-O {[%clk 0:02:48]}  Bd6 {[%clk 0:02:54]} 9. Re1 {[%clk 0:02:48]}  O-O {[%clk 0:02:54]} 10. Nbd2 {[%clk 0:02:47]}  b6 {[%clk 0:02:53]} 11. Nf1 {[%clk 0:02:44]}  h6 {[%clk 0:02:53]} 12. Be3 {[%clk 0:02:41]}  a5 {[%clk 0:02:53]} 13. Qd2 {[%clk 0:02:42]}  Ba6 {[%clk 0:02:49]} 14. Bc2 {[%clk 0:02:39]}  Ne4 {[%clk 0:02:43]} 15. Qd1 {[%clk 0:02:05]}  f5 {[%clk 0:02:39]} 16. a4 {[%clk 0:01:44]}  Rae8 {[%clk 0:02:36]} 17. N1h2 {[%clk 0:01:37]}  g5 {[%clk 0:02:30]} 18. Nf1 {[%clk 0:00:44]}  Qg7 {[%clk 0:02:26]} 19. Bd3 {[%clk 0:00:35]}  Bxd3 {[%clk 0:02:16]} 20. Qxd3 {[%clk 0:00:34]}  g4 {[%clk 0:02:10]} 21. hxg4 {[%clk 0:00:31]}  fxg4 {[%clk 0:02:10]} 22. N3d2 {[%clk 0:00:22]}  Ng5 {[%clk 0:02:03]} 23. Bxg5 {[%clk 0:00:11]}  Qxg5 {[%clk 0:02:04]} 24. Qb5 {[%clk 0:00:09]}  g3 {[%clk 0:01:46]} 25. fxg3 {[%clk 0:00:04]}  Nd8 {[%clk 0:01:45]} 26. Qxb6 {[%clk 0:00:03]}  Bxg3 {[%clk 0:01:46]} 27. Re2 {[%clk 0:00:02]}  Bf4 {[%clk 0:01:40]} 28. Rae1 {[%clk 0:00:01]}  Rf7 {[%clk 0:01:34]} 29. Qxa5 {[%clk 0:00:01]}  h5 {[%clk 0:01:30]} 30. Nf3 {[%clk 0:00:01]}  Qg7 {[%clk 0:01:15]} 31. Qb5 {[%clk 0:00:01]}  Ref8 {[%clk 0:01:14]} 32. Qd3 {[%clk 0:00:01]}  Bb8 {[%clk 0:01:01]} 33. a5 {[%clk 0:00:01]}  Rxf3 {[%clk 0:01:00]} 34. b4 {[%clk 0:00:02]}  Rxd3 {[%clk 0:01:00]} 0-1


[Site "https://www.chess.com"]

[Event "Titled Tuesday Blitz November 01 Late 2022"]
[White "Zakhartsov, Vladimir"]
[Black "Malka, Samuel"]
[WhiteFideId "4145097"]
[BlackFideId "20643675"]
[WhiteElo "2492"]
[BlackElo "2462"]
[Result "1-0"]
[Round "01"]
[TimeControl "180+1"]
[Date "2022.11.02"]
[WhiteClock "0:00:16"]
[BlackClock "0:00:02"]

1. d4 {[%clk 0:02:59]}  Nf6 {[%clk 0:02:58]} 2. c4 {[%clk 0:02:59]}  g6 {[%clk 0:02:55]} 3. Nc3 {[%clk 0:02:58]}  Bg7 {[%clk 0:02:54]} 4. e4 {[%clk 0:02:58]}  d6 {[%clk 0:02:54]} 5. h3 {[%clk 0:02:59]}  e5 {[%clk 0:02:51]} 6. d5 {[%clk 0:02:43]}  a5 {[%clk 0:02:47]} 7. g4 {[%clk 0:02:41]}  h5 {[%clk 0:02:30]} 8. g5 {[%clk 0:02:39]}  Nh7 {[%clk 0:02:30]} 9. Nf3 {[%clk 0:02:32]}  f6 {[%clk 0:01:44]} 10. gxf6 {[%clk 0:02:23]}  Bxf6 {[%clk 0:01:45]} 11. Rg1 {[%clk 0:02:21]}  g5 {[%clk 0:01:17]} 12. Be3 {[%clk 0:02:15]}  g4 {[%clk 0:01:05]} 13. Nd2 {[%clk 0:02:09]}  Na6 {[%clk 0:00:57]} 14. hxg4 {[%clk 0:02:03]}  Bxg4 {[%clk 0:00:35]} 15. Be2 {[%clk 0:02:02]}  Bxe2 {[%clk 0:00:36]} 16. Qxe2 {[%clk 0:02:03]}  Nf8 {[%clk 0:00:36]} 17. O-O-O {[%clk 0:01:50]}  Qe7 {[%clk 0:00:34]} 18. Rh1 {[%clk 0:01:49]}  h4 {[%clk 0:00:33]} 19. Nb3 {[%clk 0:01:38]}  b6 {[%clk 0:00:30]} 20. Kb1 {[%clk 0:01:35]}  Nd7 {[%clk 0:00:30]} 21. Nb5 {[%clk 0:01:25]}  Ndc5 {[%clk 0:00:28]} 22. Nxc5 {[%clk 0:01:18]}  Nxc5 {[%clk 0:00:28]} 23. Bxc5 {[%clk 0:01:11]}  bxc5 {[%clk 0:00:26]} 24. Rdg1 {[%clk 0:01:11]}  Kf7 {[%clk 0:00:20]} 25. Rf1 {[%clk 0:01:00]}  Bg5 {[%clk 0:00:18]} 26. Qg4 {[%clk 0:00:55]}  Bf4 {[%clk 0:00:16]} 27. Qf5+ {[%clk 0:00:55]}  Qf6 {[%clk 0:00:13]} 28. Qd7+ {[%clk 0:00:48]}  Qe7 {[%clk 0:00:13]} 29. Qf5+ {[%clk 0:00:38]}  Qf6 {[%clk 0:00:13]} 30. Qd7+ {[%clk 0:00:27]}  Qe7 {[%clk 0:00:12]} 31. Qc6 {[%clk 0:00:28]}  Rag8 {[%clk 0:00:11]} 32. Rh3 {[%clk 0:00:27]}  Rg2 {[%clk 0:00:08]} 33. a4 {[%clk 0:00:23]}  Rhg8 {[%clk 0:00:07]} 34. Ka2 {[%clk 0:00:22]}  Rg1 {[%clk 0:00:06]} 35. Rxg1 {[%clk 0:00:20]}  Rxg1 {[%clk 0:00:07]} 36. Nxc7 {[%clk 0:00:21]}  Rg2 {[%clk 0:00:05]} 37. Ne6 {[%clk 0:00:18]}  Rxf2 {[%clk 0:00:05]} 38. Qc8 {[%clk 0:00:18]}  Bc1 {[%clk 0:00:01]} 39. Rb3 {[%clk 0:00:17]}  Rxb2+ {[%clk 0:00:02]} 40. Rxb2 {[%clk 0:00:16]}  Bxb2 {[%clk 0:00:03]} 41. Kxb2 {[%clk 0:00:16]}  h3 {[%clk 0:00:02]} 42. Qh8 {[%clk 0:00:16]} 1-0


[Site "https://www.chess.com"]

[Event "Titled Tuesday Blitz November 01 Late 2022"]
[White "Aghasiyev, Kamal"]
[Black "Rasulov, Vugar"]
[WhiteFideId "13402854"]
[BlackFideId "13402390"]
[WhiteElo "2341"]
[BlackElo "2509"]
[Result "0-1"]
[Round "02"]
[TimeControl "180+1"]
[Date "2022.11.01"]
[WhiteClock "0:00:02"]
[BlackClock "0:00:46"]

1. d4 {[%clk 0:03:00]}  Nf6 {[%clk 0:03:00]} 2. c4 {[%clk 0:02:59]}  e6 {[%clk 0:03:00]} 3. Nf3 {[%clk 0:02:57]}  Bb4+ {[%clk 0:02:58]} 4. Bd2 {[%clk 0:02:56]}  Bxd2+ {[%clk 0:02:58]} 5. Nbxd2 {[%clk 0:02:56]}  O-O {[%clk 0:02:59]} 6. g3 {[%clk 0:02:54]}  d6 {[%clk 0:02:53]} 7. Bg2 {[%clk 0:02:53]}  Nc6 {[%clk 0:02:53]} 8. O-O {[%clk 0:02:49]}  e5 {[%clk 0:02:54]} 9. d5 {[%clk 0:02:49]}  Ne7 {[%clk 0:02:53]} 10. Qc2 {[%clk 0:02:45]}  Ng4 {[%clk 0:02:45]} 11. Rac1 {[%clk 0:02:20]}  b6 {[%clk 0:02:42]} 12. b4 {[%clk 0:02:18]}  a5 {[%clk 0:02:43]} 13. a3 {[%clk 0:02:18]}  axb4 {[%clk 0:02:43]} 14. axb4 {[%clk 0:02:18]}  f5 {[%clk 0:02:40]} 15. c5 {[%clk 0:02:13]}  Nf6 {[%clk 0:02:31]} 16. Qb3 {[%clk 0:01:53]}  Kh8 {[%clk 0:02:27]} 17. e4 {[%clk 0:01:49]}  fxe4 {[%clk 0:02:08]} 18. Ng5 {[%clk 0:01:48]}  Nf5 {[%clk 0:02:09]} 19. Ne6 {[%clk 0:01:32]}  Bxe6 {[%clk 0:02:08]} 20. dxe6 {[%clk 0:01:32]}  Nd4 {[%clk 0:02:07]} 21. Qe3 {[%clk 0:01:29]}  d5 {[%clk 0:02:05]} 22. h3 {[%clk 0:01:17]}  Nxe6 {[%clk 0:02:02]} 23. cxb6 {[%clk 0:01:09]}  cxb6 {[%clk 0:02:03]} 24. Rc6 {[%clk 0:01:09]}  Nd4 {[%clk 0:02:03]} 25. Rcc1 {[%clk 0:01:02]}  Qd6 {[%clk 0:01:59]} 26. Rb1 {[%clk 0:00:47]}  Ra4 {[%clk 0:01:56]} 27. b5 {[%clk 0:00:31]}  Ra3 {[%clk 0:01:53]} 28. Qg5 {[%clk 0:00:27]}  Rd3 {[%clk 0:01:44]} 29. Rb2 {[%clk 0:00:20]}  Rc8 {[%clk 0:01:33]} 30. Kh2 {[%clk 0:00:18]}  h6 {[%clk 0:01:32]} 31. Qg6 {[%clk 0:00:16]}  Qe6 {[%clk 0:01:29]} 32. Ra1 {[%clk 0:00:15]}  Qf5 {[%clk 0:01:25]} 33. Qxf5 {[%clk 0:00:13]}  Nxf5 {[%clk 0:01:26]} 34. Ra6 {[%clk 0:00:13]}  Rb8 {[%clk 0:01:22]} 35. Nf1 {[%clk 0:00:10]}  d4 {[%clk 0:01:21]} 36. Rc2 {[%clk 0:00:10]}  e3 {[%clk 0:01:22]} 37. fxe3 {[%clk 0:00:09]}  Nxe3 {[%clk 0:01:21]} 38. Nxe3 {[%clk 0:00:09]}  dxe3 {[%clk 0:01:22]} 39. Ra7 {[%clk 0:00:07]}  Rd2 {[%clk 0:01:19]} 40. Rc1 {[%clk 0:00:03]}  e2 {[%clk 0:01:12]} 41. Re1 {[%clk 0:00:03]}  Rbd8 {[%clk 0:00:59]} 42. Re7 {[%clk 0:00:02]}  Re8 {[%clk 0:00:57]} 43. Rxe8+ {[%clk 0:00:01]}  Nxe8 {[%clk 0:00:57]} 44. Bf3 {[%clk 0:00:02]}  Nd6 {[%clk 0:00:58]} 45. Rxe2 {[%clk 0:00:02]}  Rxe2+ {[%clk 0:00:55]} 46. Bxe2 {[%clk 0:00:03]}  g5 {[%clk 0:00:56]} 47. Kg2 {[%clk 0:00:03]}  Kg7 {[%clk 0:00:56]} 48. Kf3 {[%clk 0:00:03]}  Kf6 {[%clk 0:00:57]} 49. Ke3 {[%clk 0:00:03]}  Ke6 {[%clk 0:00:56]} 50. h4 {[%clk 0:00:03]}  Kd5 {[%clk 0:00:56]} 51. hxg5 {[%clk 0:00:02]}  hxg5 {[%clk 0:00:57]} 52. Kf3 {[%clk 0:00:03]}  Kc5 {[%clk 0:00:46]} 53. Kg4 {[%clk 0:00:03]}  Nxb5 {[%clk 0:00:47]} 54. Kxg5 {[%clk 0:00:03]}  Nc3 {[%clk 0:00:47]} 55. Bf1 {[%clk 0:00:02]}  b5 {[%clk 0:00:47]} 56. Kf5 {[%clk 0:00:02]}  Kd4 {[%clk 0:00:45]} 57. g4 {[%clk 0:00:02]}  b4 {[%clk 0:00:46]} 0-1


[Site "https://www.chess.com"]